[Event "Titled Tuesday Blitz April 18 Late 2023"]
[White "Ambartsumova, Karina"]
[Black "Demchenko, Anton"]
[WhiteFideId "4166299"]
[BlackFideId "4160258"]
[WhiteElo "2240"]
[BlackElo "2545"]
[Result "0-1"]
[Round "05"]
[TimeControl "180+2"]
[Date "2023.04.18"]
[WhiteClock "0:00:02"]
[BlackClock "0:00:04"]

1. c4 {[%clk 0:02:59]}  e5 {[%clk 0:02:59]} 2. Nc3 {[%clk 0:02:59]}  Nc6 {[%clk 0:02:59]} 3. Nf3 {[%clk 0:03:00]}  f5 {[%clk 0:02:58]} 4. d4 {[%clk 0:02:55]}  e4 {[%clk 0:02:58]} 5. Ng5 {[%clk 0:02:56]}  Bb4 {[%clk 0:02:52]} 6. g3 {[%clk 0:02:51]}  Nf6 {[%clk 0:02:47]} 7. Bg2 {[%clk 0:02:50]}  O-O {[%clk 0:02:32]} 8. O-O {[%clk 0:02:50]}  Bxc3 {[%clk 0:02:25]} 9. bxc3 {[%clk 0:02:51]}  d6 {[%clk 0:02:26]} 10. f3 {[%clk 0:02:49]}  exf3 {[%clk 0:02:15]} 11. exf3 {[%clk 0:02:50]}  h6 {[%clk 0:02:07]} 12. Nh3 {[%clk 0:02:48]}  g5 {[%clk 0:02:07]} 13. Qd3 {[%clk 0:02:37]}  Ne7 {[%clk 0:01:58]} 14. Bd2 {[%clk 0:02:30]}  Bd7 {[%clk 0:01:53]} 15. Rae1 {[%clk 0:02:23]}  Ng6 {[%clk 0:01:52]} 16. Nf2 {[%clk 0:02:12]}  Rb8 {[%clk 0:01:45]} 17. c5 {[%clk 0:01:56]}  b5 {[%clk 0:01:26]} 18. cxd6 {[%clk 0:01:41]}  cxd6 {[%clk 0:01:26]} 19. Bh3 {[%clk 0:01:39]}  Ne8 {[%clk 0:01:10]} 20. Ng4 {[%clk 0:01:27]}  Kh7 {[%clk 0:01:02]} 21. Nf2 {[%clk 0:01:05]}  Ng7 {[%clk 0:01:03]} 22. Re2 {[%clk 0:00:58]}  Qf6 {[%clk 0:00:58]} 23. Rfe1 {[%clk 0:00:58]}  Qf7 {[%clk 0:00:57]} 24. a3 {[%clk 0:00:51]}  Rbe8 {[%clk 0:00:57]} 25. Rxe8 {[%clk 0:00:47]}  Rxe8 {[%clk 0:00:58]} 26. Rxe8 {[%clk 0:00:47]}  Nxe8 {[%clk 0:00:50]} 27. Qe2 {[%clk 0:00:43]}  Ng7 {[%clk 0:00:46]} 28. Nd3 {[%clk 0:00:43]}  a5 {[%clk 0:00:41]} 29. Nc1 {[%clk 0:00:33]}  Qd5 {[%clk 0:00:39]} 30. Bg2 {[%clk 0:00:32]}  Bc6 {[%clk 0:00:30]} 31. f4 {[%clk 0:00:23]}  Qxg2+ {[%clk 0:00:31]} 32. Qxg2 {[%clk 0:00:24]}  Bxg2 {[%clk 0:00:30]} 33. Kxg2 {[%clk 0:00:25]}  gxf4 {[%clk 0:00:26]} 34. Bxf4 {[%clk 0:00:25]}  Nxf4+ {[%clk 0:00:26]} 35. gxf4 {[%clk 0:00:26]}  Ne6 {[%clk 0:00:24]} 36. Nd3 {[%clk 0:00:26]}  Nc7 {[%clk 0:00:25]} 37. Nb2 {[%clk 0:00:21]}  Kg6 {[%clk 0:00:13]} 38. Kf3 {[%clk 0:00:20]}  Kf6 {[%clk 0:00:14]} 39. c4 {[%clk 0:00:17]}  Ke6 {[%clk 0:00:13]} 40. d5+ {[%clk 0:00:12]}  Kd7 {[%clk 0:00:13]} 41. cxb5 {[%clk 0:00:05]}  Nxb5 {[%clk 0:00:12]} 42. Nc4 {[%clk 0:00:06]}  a4 {[%clk 0:00:10]} 43. Nb6+ {[%clk 0:00:06]}  Ke7 {[%clk 0:00:08]} 44. Nxa4 {[%clk 0:00:07]}  Nxa3 {[%clk 0:00:08]} 45. Nc3 {[%clk 0:00:08]}  Nc4 {[%clk 0:00:08]} 46. Kg3 {[%clk 0:00:07]}  Ne3 {[%clk 0:00:06]} 47. Kf3 {[%clk 0:00:08]}  Nc2 {[%clk 0:00:06]} 48. Kg3 {[%clk 0:00:07]}  Nb4 {[%clk 0:00:06]} 49. Kf3 {[%clk 0:00:07]}  Kf6 {[%clk 0:00:06]} 50. Kg3 {[%clk 0:00:07]}  Nc2 {[%clk 0:00:05]} 51. Kf3 {[%clk 0:00:07]}  Kf7 {[%clk 0:00:04]} 52. Kg3 {[%clk 0:00:07]}  Ne1 {[%clk 0:00:04]} 53. Kf2 {[%clk 0:00:07]}  Nd3+ {[%clk 0:00:05]} 54. Kf3 {[%clk 0:00:08]}  Kf6 {[%clk 0:00:04]} 55. Ke3 {[%clk 0:00:08]}  Nb4 {[%clk 0:00:03]} 56. Kf3 {[%clk 0:00:08]}  Ke7 {[%clk 0:00:02]} 57. Ke3 {[%clk 0:00:08]}  Na6 {[%clk 0:00:03]} 58. Kd4 {[%clk 0:00:07]}  Nc5 {[%clk 0:00:04]} 59. Nb5 {[%clk 0:00:07]}  Nd7 {[%clk 0:00:04]} 60. Nc3 {[%clk 0:00:07]}  Nf6 {[%clk 0:00:04]} 61. Ke3 {[%clk 0:00:07]}  Ng4+ {[%clk 0:00:05]} 62. Kf3 {[%clk 0:00:06]}  Nxh2+ {[%clk 0:00:06]} 63. Kg3 {[%clk 0:00:06]}  Ng4 {[%clk 0:00:06]} 64. Kh4 {[%clk 0:00:06]}  Nf6 {[%clk 0:00:07]} 65. Kh3 {[%clk 0:00:04]}  Nh5 {[%clk 0:00:03]} 66. Ne2 {[%clk 0:00:02]}  Kf7 {[%clk 0:00:03]} 67. Kh4 {[%clk 0:00:02]}  Nf6 {[%clk 0:00:04]} 68. Ng3 {[%clk 0:00:01]}  Kg6 {[%clk 0:00:04]} 69. Nxf5 {[%clk 0:00:02]}  Kxf5 {[%clk 0:00:04]} 0-1


[Site "https://www.chess.com"]

[Event "Titled Tuesday Blitz April 18 Late 2023"]
[White "benny_aizenberg"]
[Black "Rodshtein, Maxim"]
[BlackFideId "2806851"]
[WhiteElo "2598"]
[BlackElo "2555"]
[Result "0-1"]
[Round "05"]
[TimeControl "180+2"]
[Date "2023.04.18"]
[WhiteClock "0:00:03"]
[BlackClock "0:00:17"]

1. e4 {[%clk 0:02:52]}  g6 {[%clk 0:03:00]} 2. d4 {[%clk 0:02:52]}  Bg7 {[%clk 0:03:01]} 3. Nc3 {[%clk 0:02:52]}  d6 {[%clk 0:03:01]} 4. h4 {[%clk 0:02:52]}  h6 {[%clk 0:03:00]} 5. f3 {[%clk 0:02:46]}  a6 {[%clk 0:02:55]} 6. Be3 {[%clk 0:02:45]}  b5 {[%clk 0:02:55]} 7. Bd3 {[%clk 0:02:39]}  Nd7 {[%clk 0:02:55]} 8. Nh3 {[%clk 0:02:38]}  c5 {[%clk 0:02:54]} 9. dxc5 {[%clk 0:02:33]}  Nxc5 {[%clk 0:02:48]} 10. Nf4 {[%clk 0:02:31]}  Bb7 {[%clk 0:02:46]} 11. a3 {[%clk 0:02:14]}  Rc8 {[%clk 0:02:45]} 12. Qd2 {[%clk 0:02:14]}  Nf6 {[%clk 0:02:44]} 13. Be2 {[%clk 0:02:08]}  Nfd7 {[%clk 0:02:40]} 14. O-O-O {[%clk 0:02:02]}  Nb6 {[%clk 0:02:31]} 15. Kb1 {[%clk 0:01:59]}  Nca4 {[%clk 0:02:19]} 16. Nxa4 {[%clk 0:01:52]}  Nxa4 {[%clk 0:02:20]} 17. c3 {[%clk 0:01:53]}  O-O {[%clk 0:01:57]} 18. Rc1 {[%clk 0:01:46]}  Nc5 {[%clk 0:01:52]} 19. Bd1 {[%clk 0:01:41]}  Nd7 {[%clk 0:01:38]} 20. Bb3 {[%clk 0:01:37]}  Kh7 {[%clk 0:01:32]} 21. h5 {[%clk 0:01:18]}  g5 {[%clk 0:01:31]} 22. Nd5 {[%clk 0:01:18]}  Ne5 {[%clk 0:01:30]} 23. f4 {[%clk 0:01:14]}  gxf4 {[%clk 0:01:26]} 24. Bxf4 {[%clk 0:01:14]}  e6 {[%clk 0:01:25]} 25. Ne3 {[%clk 0:01:10]}  Bxe4+ {[%clk 0:01:21]} 26. Bc2 {[%clk 0:01:10]}  d5 {[%clk 0:01:19]} 27. Rcd1 {[%clk 0:01:02]}  f5 {[%clk 0:01:16]} 28. g4 {[%clk 0:00:52]}  Nc4 {[%clk 0:00:58]} 29. Nxc4 {[%clk 0:00:44]}  Rxc4 {[%clk 0:00:54]} 30. gxf5 {[%clk 0:00:40]}  Bxf5 {[%clk 0:00:49]} 31. Bxf5+ {[%clk 0:00:38]}  Rxf5 {[%clk 0:00:50]} 32. Be3 {[%clk 0:00:38]}  Rg4 {[%clk 0:00:43]} 33. Qe2 {[%clk 0:00:32]}  Re4 {[%clk 0:00:43]} 34. Rhg1 {[%clk 0:00:25]}  Qh4 {[%clk 0:00:19]} 35. Qg2 {[%clk 0:00:20]}  Qf6 {[%clk 0:00:19]} 36. Bd4 {[%clk 0:00:17]}  e5 {[%clk 0:00:18]} 37. Bc5 {[%clk 0:00:15]}  Rg5 {[%clk 0:00:18]} 38. Qc2 {[%clk 0:00:13]}  Rxg1 {[%clk 0:00:18]} 39. Rxg1 {[%clk 0:00:12]}  Kh8 {[%clk 0:00:17]} 40. Ka2 {[%clk 0:00:11]}  Rf4 {[%clk 0:00:15]} 41. Rg6 {[%clk 0:00:11]}  Qf7 {[%clk 0:00:15]} 42. Rxa6 {[%clk 0:00:11]}  d4+ {[%clk 0:00:15]} 43. Qb3 {[%clk 0:00:05]}  Qxb3+ {[%clk 0:00:13]} 44. Kxb3 {[%clk 0:00:06]}  d3 {[%clk 0:00:13]} 45. Rd6 {[%clk 0:00:05]}  e4 {[%clk 0:00:14]} 46. Be3 {[%clk 0:00:03]}  Rf3 {[%clk 0:00:14]} 47. Bxh6 {[%clk 0:00:04]}  Bxh6 {[%clk 0:00:13]} 48. Rxh6+ {[%clk 0:00:04]}  Kg7 {[%clk 0:00:14]} 49. Rd6 {[%clk 0:00:05]}  Rf2 {[%clk 0:00:14]} 50. Rd4 {[%clk 0:00:03]}  Re2 {[%clk 0:00:14]} 51. a4 {[%clk 0:00:03]}  bxa4+ {[%clk 0:00:15]} 52. Kxa4 {[%clk 0:00:03]}  d2 {[%clk 0:00:16]} 53. b4 {[%clk 0:00:03]}  e3 {[%clk 0:00:16]} 54. Kb3 {[%clk 0:00:03]}  Re1 {[%clk 0:00:17]} 55. Kc2 {[%clk 0:00:04]}  Rc1+ {[%clk 0:00:18]} 56. Kb2 {[%clk 0:00:04]}  e2 {[%clk 0:00:17]} 57. Rxd2 {[%clk 0:00:03]}  e1=Q {[%clk 0:00:18]} 58. Rd7+ {[%clk 0:00:04]}  Kh6 {[%clk 0:00:18]} 59. Kb3 {[%clk 0:00:03]}  Rb1+ {[%clk 0:00:17]} 60. Kc4 {[%clk 0:00:03]}  Qe6+ {[%clk 0:00:17]} 61. Rd5 {[%clk 0:00:03]}  Rd1 {[%clk 0:00:17]} 0-1


[Site "https://www.chess.com"]

[Event "Titled Tuesday Blitz April 18 Late 2023"]
[White "Lewicki, Miroslaw"]
[Black "Peng, Li Min"]
[WhiteFideId "1113380"]
[BlackFideId "14112620"]
[WhiteElo "2212"]
[BlackElo "2436"]
[Result "1-0"]
[Round "05"]
[TimeControl "180+2"]
[Date "2023.04.18"]
[WhiteClock "0:00:14"]
[BlackClock "0:00:19"]

1. g3 {[%clk 0:03:00]}  d5 {[%clk 0:02:59]} 2. Bg2 {[%clk 0:03:01]}  Nf6 {[%clk 0:03:00]} 3. Nf3 {[%clk 0:03:01]}  g6 {[%clk 0:03:00]} 4. O-O {[%clk 0:03:02]}  Bg7 {[%clk 0:03:00]} 5. d4 {[%clk 0:03:02]}  O-O {[%clk 0:03:01]} 6. b3 {[%clk 0:03:02]}  b6 {[%clk 0:03:00]} 7. Bb2 {[%clk 0:03:02]}  Bb7 {[%clk 0:03:00]} 8. c4 {[%clk 0:03:02]}  a5 {[%clk 0:02:46]} 9. Nc3 {[%clk 0:02:57]}  e6 {[%clk 0:02:45]} 10. e3 {[%clk 0:02:53]}  dxc4 {[%clk 0:02:41]} 11. bxc4 {[%clk 0:02:53]}  Na6 {[%clk 0:02:41]} 12. Qe2 {[%clk 0:02:39]}  Qc8 {[%clk 0:02:36]} 13. Rfd1 {[%clk 0:02:38]}  Rd8 {[%clk 0:02:35]} 14. Rac1 {[%clk 0:02:36]}  Ne4 {[%clk 0:02:32]} 15. h4 {[%clk 0:02:11]}  h6 {[%clk 0:02:30]} 16. h5 {[%clk 0:02:10]}  g5 {[%clk 0:02:30]} 17. Nxe4 {[%clk 0:01:52]}  Bxe4 {[%clk 0:02:31]} 18. d5 {[%clk 0:01:53]}  exd5 {[%clk 0:02:13]} 19. Bxg7 {[%clk 0:01:52]}  Kxg7 {[%clk 0:02:14]} 20. Qb2+ {[%clk 0:01:52]}  Kg8 {[%clk 0:02:04]} 21. cxd5 {[%clk 0:01:20]}  Nc5 {[%clk 0:02:04]} 22. Ne5 {[%clk 0:00:56]}  Bxg2 {[%clk 0:02:01]} 23. Kxg2 {[%clk 0:00:56]}  Rd6 {[%clk 0:00:58]} 24. f3 {[%clk 0:00:52]}  Qf8 {[%clk 0:00:49]} 25. Ng4 {[%clk 0:00:36]}  Qg7 {[%clk 0:00:49]} 26. Qxg7+ {[%clk 0:00:35]}  Kxg7 {[%clk 0:00:50]} 27. e4 {[%clk 0:00:36]}  Rad8 {[%clk 0:00:49]} 28. Ne3 {[%clk 0:00:36]}  Kh7 {[%clk 0:00:47]} 29. e5 {[%clk 0:00:32]}  R6d7 {[%clk 0:00:46]} 30. f4 {[%clk 0:00:32]}  gxf4 {[%clk 0:00:28]} 31. gxf4 {[%clk 0:00:33]}  f6 {[%clk 0:00:29]} 32. e6 {[%clk 0:00:18]}  Rg7+ {[%clk 0:00:29]} 33. Kf3 {[%clk 0:00:18]}  Rdg8 {[%clk 0:00:27]} 34. Nf5 {[%clk 0:00:15]}  Rg2 {[%clk 0:00:27]} 35. e7 {[%clk 0:00:13]}  Rxa2 {[%clk 0:00:26]} 36. Rc3 {[%clk 0:00:11]}  Na4 {[%clk 0:00:17]} 37. Rxc7 {[%clk 0:00:09]}  Kh8 {[%clk 0:00:16]} 38. Nxh6 {[%clk 0:00:08]}  Ra3+ {[%clk 0:00:15]} 39. Ke4 {[%clk 0:00:08]}  Re8 {[%clk 0:00:12]} 40. d6 {[%clk 0:00:07]}  Nc3+ {[%clk 0:00:10]} 41. Rxc3 {[%clk 0:00:06]}  Rxc3 {[%clk 0:00:11]} 42. Kf5 {[%clk 0:00:07]}  Kg7 {[%clk 0:00:11]} 43. Ke6 {[%clk 0:00:07]}  Re3+ {[%clk 0:00:11]} 44. Kd7 {[%clk 0:00:08]}  R8xe7+ {[%clk 0:00:10]} 45. dxe7 {[%clk 0:00:08]}  Kxh6 {[%clk 0:00:11]} 46. e8=Q {[%clk 0:00:06]}  Rxe8 {[%clk 0:00:12]} 47. Kxe8 {[%clk 0:00:06]}  Kxh5 {[%clk 0:00:12]} 48. Rg1 {[%clk 0:00:03]}  a4 {[%clk 0:00:11]} 49. Kf7 {[%clk 0:00:04]}  a3 {[%clk 0:00:10]} 50. Kxf6 {[%clk 0:00:04]}  b5 {[%clk 0:00:11]} 51. Ke5 {[%clk 0:00:05]}  b4 {[%clk 0:00:11]} 52. Kd4 {[%clk 0:00:05]}  b3 {[%clk 0:00:11]} 53. Kc3 {[%clk 0:00:06]}  b2 {[%clk 0:00:11]} 54. Kb3 {[%clk 0:00:07]}  b1=Q+ {[%clk 0:00:12]} 55. Rxb1 {[%clk 0:00:07]}  Kg4 {[%clk 0:00:12]} 56. Kxa3 {[%clk 0:00:07]}  Kxf4 {[%clk 0:00:13]} 57. Kb4 {[%clk 0:00:08]}  Ke3 {[%clk 0:00:13]} 58. Rc1 {[%clk 0:00:09]}  Kd2 {[%clk 0:00:14]} 59. Rc3 {[%clk 0:00:10]}  Ke2 {[%clk 0:00:14]} 60. Kc4 {[%clk 0:00:11]}  Kd2 {[%clk 0:00:14]} 61. Kd4 {[%clk 0:00:11]}  Ke2 {[%clk 0:00:15]} 62. Rd3 {[%clk 0:00:11]}  Kf2 {[%clk 0:00:16]} 63. Re3 {[%clk 0:00:12]}  Kf1 {[%clk 0:00:16]} 64. Ke4 {[%clk 0:00:12]}  Kf2 {[%clk 0:00:17]} 65. Kf4 {[%clk 0:00:13]}  Kg2 {[%clk 0:00:18]} 66. Rf3 {[%clk 0:00:13]}  Kg1 {[%clk 0:00:19]} 67. Kg3 {[%clk 0:00:13]}  Kh1 {[%clk 0:00:19]} 68. Rf1# {[%clk 0:00:14]} 1-0


[Site "https://www.chess.com"]

[Event "Titled Tuesday Blitz April 18 Late 2023"]
[White "Jimenez Almeida, Luis David"]
[Black "Thomforde-Toates, Noah"]
[WhiteFideId "22242244"]
[BlackFideId "30951992"]
[WhiteElo "2245"]
[BlackElo "2746"]
[Result "0-1"]
[Round "05"]
[TimeControl "180+2"]
[Date "2023.04.18"]
[WhiteClock "0:00:58"]
[BlackClock "0:01:14"]

1. e4 {[%clk 0:03:00]}  d6 {[%clk 0:02:59]} 2. d4 {[%clk 0:03:00]}  Nf6 {[%clk 0:02:46]} 3. Nc3 {[%clk 0:02:59]}  Nbd7 {[%clk 0:02:45]} 4. g3 {[%clk 0:02:58]}  e5 {[%clk 0:02:41]} 5. Nge2 {[%clk 0:02:58]}  g6 {[%clk 0:02:41]} 6. Bg2 {[%clk 0:02:58]}  Bg7 {[%clk 0:02:41]} 7. h3 {[%clk 0:02:58]}  O-O {[%clk 0:02:41]} 8. Be3 {[%clk 0:02:58]}  exd4 {[%clk 0:02:39]} 9. Nxd4 {[%clk 0:02:58]}  Re8 {[%clk 0:02:40]} 10. Qd2 {[%clk 0:02:57]}  Nc5 {[%clk 0:02:40]} 11. Bg5 {[%clk 0:02:38]}  Nfxe4 {[%clk 0:02:19]} 12. Nxe4 {[%clk 0:02:16]}  Nxe4 {[%clk 0:02:16]} 13. Bxe4 {[%clk 0:01:57]}  Rxe4+ {[%clk 0:02:13]} 14. Ne2 {[%clk 0:01:57]}  Qe8 {[%clk 0:02:13]} 15. Be3 {[%clk 0:01:57]}  b6 {[%clk 0:02:10]} 16. O-O-O {[%clk 0:01:55]}  Bb7 {[%clk 0:02:03]} 17. Rh2 {[%clk 0:01:52]}  Qe6 {[%clk 0:01:51]} 18. Kb1 {[%clk 0:01:51]}  Re8 {[%clk 0:01:48]} 19. h4 {[%clk 0:01:45]}  Rc4 {[%clk 0:01:30]} 20. Nf4 {[%clk 0:01:35]}  Qe5 {[%clk 0:01:25]} 21. c3 {[%clk 0:01:31]}  Be4+ {[%clk 0:01:23]} 22. Ka1 {[%clk 0:01:30]}  Rxc3 {[%clk 0:01:19]} 23. h5 {[%clk 0:00:58]}  Rc2 {[%clk 0:01:14]} 0-1


[Site "https://www.chess.com"]

[Event "Titled Tuesday Blitz April 18 Late 2023"]
[White "Silva, Caio Henrique Angelico"]
[Black "Bazeev, German"]
[WhiteFideId "22777210"]
[BlackFideId "24119350"]
[WhiteElo "2096"]
[BlackElo "2466"]
[Result "0-1"]
[Round "05"]
[TimeControl "180+2"]
[Date "2023.04.18"]
[WhiteClock "0:00:02"]
[BlackClock "0:00:27"]

1. Nf3 {[%clk 0:03:00]}  Nf6 {[%clk 0:02:51]} 2. g3 {[%clk 0:03:00]}  d5 {[%clk 0:02:51]} 3. b3 {[%clk 0:02:57]}  c6 {[%clk 0:02:51]} 4. Bb2 {[%clk 0:02:57]}  Bg4 {[%clk 0:02:51]} 5. Bg2 {[%clk 0:02:57]}  Nbd7 {[%clk 0:02:46]} 6. O-O {[%clk 0:02:55]}  h5 {[%clk 0:02:45]} 7. h3 {[%clk 0:02:48]}  Bxf3 {[%clk 0:02:44]} 8. exf3 {[%clk 0:02:49]}  h4 {[%clk 0:02:44]} 9. g4 {[%clk 0:02:49]}  e6 {[%clk 0:02:42]} 10. Re1 {[%clk 0:02:47]}  Bd6 {[%clk 0:02:41]} 11. d3 {[%clk 0:02:39]}  Bb8 {[%clk 0:02:41]} 12. Nd2 {[%clk 0:02:35]}  Bf4 {[%clk 0:02:32]} 13. Nf1 {[%clk 0:02:33]}  Qc7 {[%clk 0:02:31]} 14. c4 {[%clk 0:02:26]}  dxc4 {[%clk 0:02:29]} 15. dxc4 {[%clk 0:02:27]}  O-O-O {[%clk 0:02:29]} 16. Qe2 {[%clk 0:02:24]}  Nc5 {[%clk 0:02:22]} 17. Rad1 {[%clk 0:02:16]}  Rxd1 {[%clk 0:02:21]} 18. Rxd1 {[%clk 0:02:15]}  Rd8 {[%clk 0:02:21]} 19. Bd4 {[%clk 0:02:12]}  b6 {[%clk 0:02:07]} 20. Ne3 {[%clk 0:01:31]}  e5 {[%clk 0:02:04]} 21. Bxc5 {[%clk 0:01:10]}  bxc5 {[%clk 0:02:05]} 22. Nf5 {[%clk 0:01:08]}  g6 {[%clk 0:02:00]} 23. Ne3 {[%clk 0:01:03]}  Qa5 {[%clk 0:01:33]} 24. Rxd8+ {[%clk 0:01:01]}  Qxd8 {[%clk 0:01:34]} 25. Bf1 {[%clk 0:00:58]}  Qd4 {[%clk 0:01:28]} 26. Ng2 {[%clk 0:00:49]}  Bg5 {[%clk 0:01:26]} 27. Qd3 {[%clk 0:00:38]}  Kc7 {[%clk 0:01:22]} 28. Be2 {[%clk 0:00:31]}  Qxd3 {[%clk 0:01:19]} 29. Bxd3 {[%clk 0:00:31]}  Kb6 {[%clk 0:01:20]} 30. Ne3 {[%clk 0:00:24]}  Ka5 {[%clk 0:01:15]} 31. Nc2 {[%clk 0:00:23]}  Bf4 {[%clk 0:01:12]} 32. Kf1 {[%clk 0:00:22]}  Nh7 {[%clk 0:01:12]} 33. Kg2 {[%clk 0:00:20]}  Ng5 {[%clk 0:01:12]} 34. Be4 {[%clk 0:00:20]}  Ne6 {[%clk 0:01:04]} 35. Bxc6 {[%clk 0:00:19]}  Nd4 {[%clk 0:01:04]} 36. Ne1 {[%clk 0:00:14]}  Kb4 {[%clk 0:01:02]} 37. Bd5 {[%clk 0:00:15]}  Kc3 {[%clk 0:00:51]} 38. Bxf7 {[%clk 0:00:13]}  Bd2 {[%clk 0:00:51]} 39. Kf1 {[%clk 0:00:12]}  Bxe1 {[%clk 0:00:50]} 40. Kxe1 {[%clk 0:00:13]}  g5 {[%clk 0:00:50]} 41. Bd5 {[%clk 0:00:12]}  a5 {[%clk 0:00:42]} 42. Kd1 {[%clk 0:00:09]}  Kb2 {[%clk 0:00:32]} 43. a3 {[%clk 0:00:01]}  Kxb3 {[%clk 0:00:30]} 44. Kd2 {[%clk 0:00:01]}  Kxa3 {[%clk 0:00:30]} 45. Kd3 {[%clk 0:00:02]}  a4 {[%clk 0:00:28]} 46. Bf7 {[%clk 0:00:02]}  Kb2 {[%clk 0:00:27]} 0-1


[Site "https://www.chess.com"]

[Event "Titled Tuesday Blitz April 18 Late 2023"]
[White "Prieto Aranguren, Alain"]
[Black "Marek, Matyas"]
[WhiteFideId "2268906"]
[BlackFideId "335398"]
[WhiteElo "2209"]
[BlackElo "2279"]
[Result "0-1"]
[Round "05"]
[TimeControl "180+2"]
[Date "2023.04.18"]
[WhiteClock "0:00:01"]
[BlackClock "0:00:23"]

1. d4 {[%clk 0:02:55]}  Nf6 {[%clk 0:02:59]} 2. c4 {[%clk 0:02:55]}  c5 {[%clk 0:02:59]} 3. d5 {[%clk 0:02:54]}  b5 {[%clk 0:03:00]} 4. cxb5 {[%clk 0:02:54]}  a6 {[%clk 0:03:00]} 5. bxa6 {[%clk 0:02:55]}  g6 {[%clk 0:03:01]} 6. Nc3 {[%clk 0:02:55]}  Bg7 {[%clk 0:03:02]} 7. e4 {[%clk 0:02:50]}  O-O {[%clk 0:03:02]} 8. a7 {[%clk 0:02:44]}  Rxa7 {[%clk 0:03:02]} 9. Nf3 {[%clk 0:02:40]}  d6 {[%clk 0:03:02]} 10. Be2 {[%clk 0:02:39]}  Ba6 {[%clk 0:03:00]} 11. O-O {[%clk 0:02:37]}  Qa5 {[%clk 0:03:00]} 12. Bd2 {[%clk 0:02:35]}  Bxe2 {[%clk 0:03:00]} 13. Qxe2 {[%clk 0:02:35]}  Qa6 {[%clk 0:03:01]} 14. Qxa6 {[%clk 0:02:33]}  Nxa6 {[%clk 0:03:00]} 15. e5 {[%clk 0:02:21]}  dxe5 {[%clk 0:02:32]} 16. Nxe5 {[%clk 0:02:16]}  Nb4 {[%clk 0:02:33]} 17. Be3 {[%clk 0:01:59]}  Rc8 {[%clk 0:01:57]} 18. Nc6 {[%clk 0:01:43]}  Nxc6 {[%clk 0:01:57]} 19. dxc6 {[%clk 0:01:35]}  Rxc6 {[%clk 0:01:56]} 20. Rac1 {[%clk 0:01:26]}  Ng4 {[%clk 0:01:52]} 21. Rc2 {[%clk 0:01:16]}  Nxe3 {[%clk 0:01:46]} 22. fxe3 {[%clk 0:01:16]}  Rb7 {[%clk 0:01:31]} 23. Rf4 {[%clk 0:01:06]}  e6 {[%clk 0:01:27]} 24. Rc4 {[%clk 0:01:04]}  Rb4 {[%clk 0:01:26]} 25. Na4 {[%clk 0:00:52]}  Rd6 {[%clk 0:01:19]} 26. Nxc5 {[%clk 0:00:45]}  Rd1+ {[%clk 0:01:18]} 27. Kf2 {[%clk 0:00:42]}  Rxc4 {[%clk 0:01:12]} 28. Rxc4 {[%clk 0:00:42]}  Rd2+ {[%clk 0:01:11]} 29. Kf3 {[%clk 0:00:41]}  Rxb2 {[%clk 0:01:12]} 30. a4 {[%clk 0:00:41]}  Ra2 {[%clk 0:01:12]} 31. h4 {[%clk 0:00:23]}  Bf6 {[%clk 0:01:09]} 32. g3 {[%clk 0:00:21]}  Kg7 {[%clk 0:01:03]} 33. Ne4 {[%clk 0:00:20]}  Be5 {[%clk 0:01:02]} 34. g4 {[%clk 0:00:20]}  h6 {[%clk 0:00:57]} 35. g5 {[%clk 0:00:20]}  hxg5 {[%clk 0:00:57]} 36. hxg5 {[%clk 0:00:20]}  Ra3 {[%clk 0:00:56]} 37. Nc5 {[%clk 0:00:16]}  Bd6 {[%clk 0:00:54]} 38. Ne4 {[%clk 0:00:16]}  Bb8 {[%clk 0:00:52]} 39. Nf6 {[%clk 0:00:16]}  Be5 {[%clk 0:00:48]} 40. Ne4 {[%clk 0:00:16]}  Kf8 {[%clk 0:00:45]} 41. Rc5 {[%clk 0:00:15]}  Bd4 {[%clk 0:00:42]} 42. Rc8+ {[%clk 0:00:10]}  Ke7 {[%clk 0:00:42]} 43. Nf6 {[%clk 0:00:10]}  Bxf6 {[%clk 0:00:39]} 44. gxf6+ {[%clk 0:00:10]}  Kxf6 {[%clk 0:00:40]} 45. Ra8 {[%clk 0:00:10]}  Ke5 {[%clk 0:00:38]} 46. a5 {[%clk 0:00:11]}  f5 {[%clk 0:00:38]} 47. a6 {[%clk 0:00:11]}  g5 {[%clk 0:00:39]} 48. a7 {[%clk 0:00:11]}  g4+ {[%clk 0:00:40]} 49. Kf2 {[%clk 0:00:10]}  g3+ {[%clk 0:00:37]} 50. Kf3 {[%clk 0:00:09]}  f4 {[%clk 0:00:36]} 51. Kg2 {[%clk 0:00:05]}  fxe3 {[%clk 0:00:30]} 52. Kxg3 {[%clk 0:00:05]}  Ke4 {[%clk 0:00:28]} 53. Kg2 {[%clk 0:00:04]}  Ra2+ {[%clk 0:00:27]} 54. Kf1 {[%clk 0:00:04]}  e2+ {[%clk 0:00:26]} 55. Kf2 {[%clk 0:00:05]}  e5 {[%clk 0:00:25]} 56. Rh8 {[%clk 0:00:03]}  Rxa7 {[%clk 0:00:24]} 57. Kxe2 {[%clk 0:00:03]}  Ra2+ {[%clk 0:00:25]} 58. Ke1 {[%clk 0:00:04]}  Kd3 {[%clk 0:00:25]} 59. Rh3+ {[%clk 0:00:03]}  Kd4 {[%clk 0:00:25]} 60. Rh8 {[%clk 0:00:03]}  e4 {[%clk 0:00:25]} 61. Rb8 {[%clk 0:00:01]}  Ke3 {[%clk 0:00:23]} 0-1


[Site "https://www.chess.com"]

[Event "Titled Tuesday Blitz April 18 Late 2023"]
[White "ayme97"]
[Black "Prohaszka, Peter"]
[BlackFideId "726265"]
[WhiteElo "2227"]
[BlackElo "2626"]
[Result "0-1"]
[Round "05"]
[TimeControl "180+2"]
[Date "2023.04.18"]
[WhiteClock "0:00:02"]
[BlackClock "0:00:05"]

1. d4 {[%clk 0:03:00]}  d5 {[%clk 0:02:56]} 2. c4 {[%clk 0:02:59]}  e6 {[%clk 0:02:54]} 3. Nc3 {[%clk 0:02:59]}  a6 {[%clk 0:02:53]} 4. cxd5 {[%clk 0:02:57]}  exd5 {[%clk 0:02:54]} 5. Nf3 {[%clk 0:02:57]}  Nf6 {[%clk 0:02:54]} 6. Bg5 {[%clk 0:02:57]}  Be6 {[%clk 0:02:52]} 7. e3 {[%clk 0:02:56]}  Nbd7 {[%clk 0:02:50]} 8. Bd3 {[%clk 0:02:54]}  c6 {[%clk 0:02:47]} 9. Ne5 {[%clk 0:02:50]}  h6 {[%clk 0:02:38]} 10. Bxf6 {[%clk 0:02:42]}  Qxf6 {[%clk 0:02:32]} 11. f4 {[%clk 0:02:33]}  Bf5 {[%clk 0:02:27]} 12. O-O {[%clk 0:02:08]}  Bxd3 {[%clk 0:02:17]} 13. Qxd3 {[%clk 0:02:08]}  Nxe5 {[%clk 0:01:40]} 14. fxe5 {[%clk 0:02:07]}  Qg6 {[%clk 0:01:28]} 15. Qxg6 {[%clk 0:01:58]}  fxg6 {[%clk 0:01:29]} 16. e4 {[%clk 0:01:58]}  dxe4 {[%clk 0:01:26]} 17. Nxe4 {[%clk 0:01:59]}  Rd8 {[%clk 0:01:25]} 18. Rad1 {[%clk 0:01:58]}  Be7 {[%clk 0:01:24]} 19. Rd2 {[%clk 0:01:09]}  Rf8 {[%clk 0:01:22]} 20. Rxf8+ {[%clk 0:01:08]}  Kxf8 {[%clk 0:01:21]} 21. Kf2 {[%clk 0:01:07]}  Kf7 {[%clk 0:01:19]} 22. g3 {[%clk 0:00:57]}  Ke6 {[%clk 0:01:18]} 23. Ke3 {[%clk 0:00:56]}  a5 {[%clk 0:01:10]} 24. h4 {[%clk 0:00:53]}  a4 {[%clk 0:01:07]} 25. Nc3 {[%clk 0:00:45]}  a3 {[%clk 0:01:03]} 26. b3 {[%clk 0:00:41]}  g5 {[%clk 0:01:01]} 27. h5 {[%clk 0:00:36]}  Bb4 {[%clk 0:00:57]} 28. Rc2 {[%clk 0:00:21]}  c5 {[%clk 0:00:55]} 29. dxc5 {[%clk 0:00:16]}  Bxc5+ {[%clk 0:00:53]} 30. Ke4 {[%clk 0:00:09]}  Rd4+ {[%clk 0:00:48]} 31. Kf3 {[%clk 0:00:06]}  g4+ {[%clk 0:00:44]} 32. Kg2 {[%clk 0:00:05]}  Kxe5 {[%clk 0:00:44]} 33. Ne2 {[%clk 0:00:05]}  b6 {[%clk 0:00:10]} 34. Nxd4 {[%clk 0:00:05]}  Kxd4 {[%clk 0:00:10]} 35. Rc4+ {[%clk 0:00:03]}  Kd3 {[%clk 0:00:11]} 36. Rxg4 {[%clk 0:00:03]}  Kc3 {[%clk 0:00:07]} 37. Rxg7 {[%clk 0:00:03]}  Kb2 {[%clk 0:00:07]} 38. Rg6 {[%clk 0:00:03]}  Kxa2 {[%clk 0:00:06]} 39. Rxh6 {[%clk 0:00:02]}  Kxb3 {[%clk 0:00:06]} 40. Rh7 {[%clk 0:00:02]}  a2 {[%clk 0:00:05]} 0-1


[Site "https://www.chess.com"]